fUSD/lending_fUSD_20251024
["ID","MTS","AMOUNT","RATE_DAILY","PERIOD"]
[392254374,1761280241517,-916.52355178,0.00019997,2]
[392254375,1761280241526,-916.52355178,0.00019997,2]
[392254376,1761280241536,-916.52355178,0.00019997,2]
[392254377,1761280241547,-916.52355178,0.00019997,2]
[392254378,1761280241560,-916.52355178,0.00019997,2]
[392254379,1761280241569,-916.52355178,0.00019997,2]
[392254380,1761280241578,-916.52355178,0.00019997,2]
[392254381,1761280241588,-916.52355178,0.00019997,2]
[392254382,1761280241597,-916.52355178,0.00019997,2]
[392254383,1761280241606,-916.52355178,0.00019997,2]
[392254384,1761280241615,-916.52355178,0.00019997,2]
[392254385,1761280241624,-916.52355178,0.00019997,2]
[392254386,1761280241634,-916.52355178,0.00019997,2]
[392254387,1761280241643,-916.52355178,0.00019997,2]
[392254388,1761280241653,-916.52355178,0.00019997,2]
[392254389,1761280241662,-916.52355178,0.00019997,2]
[392254390,1761280241672,-916.52355178,0.00019997,2]
[392254391,1761280241682,-916.52355178,0.00019997,2]
[392254392,1761280241691,-916.52355178,0.00019997,2]
[392254393,1761280241701,-916.52355178,0.00019997,2]
[392254394,1761280241711,-916.52355178,0.00019997,2]
[392254395,1761280241721,-885.97276673,0.00019997,2]
[392254396,1761280241730,-885.97276673,0.00019997,2]
[392254397,1761280241740,-885.97276673,0.00019997,2]
[392254398,1761280241750,-885.97276673,0.00019997,2]
[392254399,1761280241761,-885.97276673,0.00019997,2]
[392254400,1761280241770,-885.97276673,0.00019997,2]
[392254401,1761280241780,-885.97276673,0.00019997,2]
[392254402,1761280241789,-885.97276673,0.00019997,2]
[392254403,1761280241799,-885.97276673,0.00019997,2]
[392254404,1761280241808,-885.97276673,0.00019997,2]
[392254405,1761280241818,-885.97276673,0.00019997,2]
[392254406,1761280241827,-885.97276673,0.00019997,2]
[392254407,1761280241836,-885.97276673,0.00019997,2]
[392254408,1761280241846,-885.97276673,0.00019997,2]
[392254409,1761280241855,-885.97276673,0.00019997,2]
[392254410,1761280241864,-885.97276673,0.00019997,2]
[392254411,1761280241874,-885.97276673,0.00019997,2]
[392254412,1761280241884,-885.97276673,0.00019997,2]
[392254413,1761280241894,-885.97276673,0.00019997,2]
[392254414,1761280241904,-885.97276673,0.00019997,2]
[392254415,1761280241913,-885.97276673,0.00019997,2]
[392254416,1761280241924,-885.97276673,0.00019997,2]
[392254417,1761280241933,-885.97276673,0.00019997,2]
[392254418,1761280241943,-885.97276673,0.00019997,2]
[392254419,1761280241952,-885.97276673,0.00019997,2]
[392254420,1761280241963,-885.97276673,0.00019997,2]
[392254421,1761280241972,-500.0,0.00019997,2]
[392254422,1761280241982,-885.97276668,0.00019997,2]
[392254423,1761280241992,-253.34581879,0.00019997,2]
[392254424,1761280242001,-205814.36131855,0.00019999,2]
[392254425,1761280242011,-33098.06004574,0.0002,2]
[392254426,1761280242020,-2121.16259545,0.0002,2]
[392254427,1761280242029,-157.02636282,0.0002002,2]
[392254428,1761280242039,-9749.76699406,0.0002014,2]
[392254429,1761280242048,-157.02636282,0.0002014,2]
[392254430,1761280242062,-500.0,0.00020173,2]
[392254431,1761280242071,-500.0,0.00020173,2]
[392254432,1761280242080,-502.131064,0.00020173,2]
[392254433,1761280242089,-222.2665538,0.00020173,2]
[392254434,1761280242100,-504.88390725,0.00020173,2]
[392254435,1761280242109,-500.0,0.00020173,2]
[392254436,1761280242118,-500.0,0.00020173,2]
[392254437,1761280242127,-500.0,0.00020173,2]
[392254438,1761280242136,-501.49056779,0.00020173,2]
[392254439,1761280242145,-500.59683785,0.00020173,2]
[392254440,1761280242155,-500.0,0.00020173,2]
[392254441,1761280242165,-500.0,0.00020173,2]
[392254442,1761280242174,-500.0,0.00020173,2]
[392254443,1761280242183,-316.53183403,0.00020173,2]
[392254444,1761280242193,-153.49,0.00020177,2]
[392254445,1761280242202,-151.0,0.00020184,2]
[392254446,1761280242211,-151.0,0.00020184,2]
[392254447,1761280242221,-708969.03661157,0.00020187,2]
[392254448,1761280242231,-164.79021265,0.0002024,2]
[392254449,1761280242239,-150.0,0.00020331,2]
[392254450,1761280242248,-230.91805697,0.0002044,2]
[392254451,1761280242258,-641.73489107,0.00020721,2]
[392254452,1761280242267,-400.4583929,0.00020721,2]
[392254453,1761280242276,-1005.54377894,0.00020721,2]
[392254454,1761280242285,-834.13236155,0.00020721,2]
[392254456,1761280242294,-1000.0,0.00020721,2]
[392254458,1761280242303,-500.0,0.00020721,2]
[392254459,1761280242312,-1445.0,0.0002095,2]
[392254460,1761280242321,-1196.82263347,0.00021268,2]
[392254461,1761280242330,-195.0,0.00021298,2]
[392254462,1761280242340,-420.0,0.00021727,2]
[392254463,1761280242349,-420.0,0.00021727,2]
[392254464,1761280242359,-420.0,0.00021727,2]
[392254465,1761280242368,-183.0,0.00021727,2]
[392254466,1761280242377,-1680.0,0.00021774,2]
[392254467,1761280242386,-1680.0,0.00021831,2]
[392254468,1761280242395,-250.0,0.00021888,2]
[392254470,1761280242404,-150.0,0.0002189,2]
[392254472,1761280242414,-250.0,0.00021909,2]
[392254474,1761280242424,-2136.09404103,0.00021942,2]
[392254476,1761280242433,-195.0,0.00021997,2]
[392254477,1761280242443,-326.38005833,0.00021998,2]
[392254478,1761280242454,-195.0,0.00021998,2]
[392254479,1761280242464,-150.0,0.00022,2]
[392254480,1761280242473,-1700.0,0.00022007,2]
[392254481,1761280242482,-302.60820547,0.00022206,2]
[392254482,1761280242491,-1317.90908852,0.00022206,2]
[392254483,1761280242500,-195.0,0.00022206,2]
[392254484,1761280242510,-300.0,0.00022206,2]
[392254485,1761280242519,-9749.76699399,0.00022609,2]
[392254486,1761280242529,-516.91882987,0.0002271,2]
[392254487,1761280242538,-19166.59498876,0.000229,2]
[392254489,1761280242547,-434.7322565,0.00023,2]
[392254490,1761280242556,-995.87521933,0.00023,2]
[392254491,1761280242565,-2555.80947497,0.000231,2]
[392254492,1761280242576,-51569.05177152,0.000232,2]
[392254493,1761280242585,-164.79021262,0.00023325,2]
[392254494,1761280242595,-200.0,0.000235,2]
[392254495,1761280242604,-587.0,0.00023659,2]
[392254496,1761280242614,-587.0,0.00023659,2]
[392254497,1761280242623,-2351.0,0.0002371,2]
[392254498,1761280242632,-2351.0,0.00023887,2]
[392254499,1761280242642,-3600.0,0.00024,2]
[392254500,1761280242650,-16014.95720954,0.00024,2]
[392254501,1761280242659,-154184.9407523,0.00024051,2]
[392254502,1761280242669,-416.69963145,0.0002421,2]
[392254503,1761280242679,-3651.37256989,0.0002421,2]
[392254504,1761280242688,-438.24888082,0.0002465,2]
[392254505,1761280242699,-505.17363415,0.00024773,2]
[392254506,1761280242709,-501.90045619,0.00024773,2]
[392254507,1761280242718,-500.0,0.00024773,2]
[392254508,1761280242727,-500.0,0.00024773,2]
[392254509,1761280242736,-200.0,0.00024773,2]
[392254510,1761280242745,-500.0,0.00024773,2]
[392254511,1761280242755,-500.0,0.00024773,2]
[392254512,1761280242764,-507.89357814,0.00024773,2]
[392254513,1761280242773,-502.77701551,0.00024773,2]
[392254514,1761280242782,-502.16027454,0.00024773,2]
[392254515,1761280242791,-318646.629792,0.000248,2]
[392254516,1761280242800,-109247.061584,0.000249,2]
[392254517,1761280242810,-34403.3105225,0.00024965,2]
[392254518,1761280242819,-3213.14887011,0.0002499,2]
[392254519,1761280242828,-404.32294932,0.00025,2]
[392254520,1761280242837,-4732.45466949,0.00025,3]
[392254521,1761280242846,-503.29079687,0.00025,7]
[392254522,1761280242856,-40947.64,0.00025,7]
[392254523,1761280242865,-9749.76699399,0.00025079,2]
[392254524,1761280242875,-400.0,0.00025458,2]
[392254525,1761280242884,-823.0,0.00025763,2]
[392254526,1761280242894,-823.0,0.00025763,2]
[392254527,1761280242903,-2048.0,0.00025818,2]
[392254528,1761280242912,-3213.14887011,0.00025869,2]
[392254529,1761280242921,-17481.57448461,0.00025879,2]
[392254530,1761280242930,-357.27839786,0.00026,10]
[392254531,1761280242940,-3292.0,0.00026136,2]
[392254532,1761280242949,-206.92604314,0.00026142,2]
[392254533,1761280242959,-164.79021262,0.0002641,2]
[392254534,1761280242968,-301.6,0.00026676,2]
[392254535,1761280242977,-3213.14887011,0.00026713,2]
[392254536,1761280242987,-3538.51706589,0.00026723,2]
[392254537,1761280242995,-1000.0,0.00026861,7]
[392254538,1761280243005,-1462.19,0.00027,2]
[392254539,1761280243014,-250.0,0.00027,2]
[392254540,1761280243023,-396.080785,0.00027397,30]
[392254541,1761280243033,-151.0,0.00027397,30]
[392254542,1761280243042,-396.080785,0.00027397,30]
[392254543,1761280243052,-396.080785,0.00027397,30]
[392254544,1761280243064,-396.080785,0.00027397,30]
[392254545,1761280243073,-151.0,0.00027397,30]
[392254546,1761280243082,-151.0,0.00027397,30]
[392254547,1761280243091,-153.374239,0.00027397,30]
[392254548,1761280243100,-151.0,0.00027397,30]
[392254549,1761280243110,-1075.31,0.000274,7]
[392254550,1761280243119,-1536.77,0.000274,7]
[392254551,1761280243128,-9749.76699399,0.00027548,2]
[392254552,1761280243137,-250.86219547,0.00027675,2]
[392254553,1761280243146,-500.0,0.000279,10]
[392254554,1761280243156,-16065.7443506,0.0002799,2]
[392254555,1761280243168,-7880.11601639,0.00028,2]
[392254556,1761280243182,-54274.42274736,0.00028,2]
[392254557,1761280243194,-4964.3026346,0.00028,7]
[392254558,1761280243257,-151.0,0.00027397,30]
[392254559,1761280243270,-955.5799996,0.00028,7]
[392254560,1761280243283,-586.1875232,0.00028,7]
[392254561,1761280243297,-1170.3795753,0.00028,7]
[392254562,1761280243311,-524.21959471,0.00028,7]
[392254563,1761280244300,-252.75098878,0.00019952,2]
[392254564,1761280244311,-116.08143484,0.00019952,2]
[392254571,1761280245676,-227.27692207,0.00019952,2]
[392254572,1761280245687,-264.14145293,0.00019952,2]
[392254573,1761280245701,-235.85854707,0.00019952,2]
[392254574,1761280245712,-274.56441799,0.00019952,2]
[392254575,1761280245725,-159.01817395,0.00019952,2]
[392254576,1761280245736,-500.0,0.00019952,2]
[392254577,1761280245746,-151.0,0.00027397,30]
[392254578,1761280245757,-151.0,0.00027397,30]
[392254579,1761280245768,-2274.80882168,0.00028,7]
[392254583,1761280324999,-282.99999984,0.00019852,2]
[392254584,1761280327239,-225.15136936,0.00019852,2]
[392254588,1761280388877,35181.0,0.00027397,120]
[392254591,1761280489960,-165.35336065,0.00019852,2]
[392254592,1761280489988,-104.72285733,0.00019951,2]
[392254595,1761280529960,-202.57951226,0.00019951,2]
[392254603,1761280780058,998.69,0.00013589,2]
[392254604,1761280780262,998.69,0.00014305,2]
[392254605,1761280780465,998.69,0.0001502,2]
[392254606,1761280780692,998.69,0.00015735,2]
[392254607,1761280780884,998.69,0.0001645,2]
[392254608,1761280781115,998.69,0.00017166,2]
[392254609,1761280781318,998.69,0.00017881,2]
[392254610,1761280785304,-317.20795864,0.00018596,2]
[392254611,1761280788383,-151.93086821,0.00018596,2]
[392254612,1761280790536,-153.21238773,0.00018596,2]
[392254613,1761280793772,-216.55287849,0.00018596,2]
[392254614,1761280795842,-159.78590693,0.00018596,2]
[392254615,1761280795865,-2.80479192,0.00019291,2]
[392254616,1761280797498,-203.03436496,0.00019291,2]
[392254621,1761280815020,-155.47749682,0.00019291,2]
[392254622,1761280820049,-300.0,0.00019291,2]
[392254623,1761280822307,-237.78583778,0.00019291,2]
[392254624,1761280822331,-10.66346337,0.00019311,2]
[392254625,1761280826937,-166.52519143,0.00019311,2]
[392254626,1761280829672,-165.838802,0.00019311,2]
[392254641,1761280834044,-173.07849288,0.00019311,2]
[392254642,1761280836694,-215.43487909,0.00019311,2]
[392254644,1761280838697,-259.39678625,0.00019311,2]
[392254646,1761280844218,-7.75238498,0.00019311,2]
[392254647,1761280844243,-156.58119535,0.00019851,2]
[392254648,1761280848424,-207.11704356,0.00019851,2]
[392254651,1761280874757,-170.55962723,0.00019851,2]
[392254652,1761280877145,-215.60634023,0.00019851,2]
[392254655,1761280878242,-284.56512091,0.00019851,2]
[392254657,1761280880983,-388.69422709,0.00019851,2]
[392254658,1761280883997,-233.99785473,0.00019851,2]
[392254659,1761280885512,-178.17581987,0.00019851,2]
[392254660,1761280887169,-388.798108,0.00019851,2]
[392254661,1761280888900,-338.03571405,0.00019851,2]
[392254663,1761280905524,-200.82616513,0.00019851,2]
[392254664,1761280908705,-207.86173315,0.00019851,2]
[392254670,1761280964862,-284.40820052,0.00019851,2]
[392254671,1761280967712,-357.0750483,0.00019851,2]
[392254672,1761280971585,-283.88777509,0.00019851,2]
[392254673,1761280978537,-203.31234584,0.00019851,2]
[392254675,1761280994749,-272.18806479,0.00019851,2]
[392254676,1761280996319,-241.49313304,0.00019851,2]
[392254689,1761281039734,-190.72,0.00019751,2]
[392254690,1761281042085,-295.06994847,0.00019751,2]
[392254691,1761281044658,-250.0,0.00019751,2]
[392254692,1761281047071,-156.43564937,0.00019751,2]
[392254693,1761281049578,-205.8991315,0.00019751,2]
[392254694,1761281052259,-223.24300955,0.00019751,2]
[392254695,1761281053782,-295.79,0.00019751,2]
[392254705,1761281070162,-404.02780811,0.00019751,2]
[392254711,1761281114768,-52.441913,0.00019751,2]
[392254712,1761281114792,-139.13615258,0.00019776,2]
[392254714,1761281116980,-180.7499272,0.00019776,2]
[392254715,1761281119114,-402.69781093,0.00019776,2]
[392254716,1761281120675,-287.42089539,0.00019776,2]
[392254717,1761281122740,-351.2296079,0.00019776,2]
[392254718,1761281125294,-179.50218907,0.00019776,2]
[392254719,1761281128893,-157.57740705,0.00019776,2]
[392254720,1761281145346,-301.22351527,0.00019776,2]
[392254721,1761281148191,-212.57910461,0.00019776,2]
[392254722,1761281149811,-515.97359416,0.00019776,2]
[392254726,1761281186280,150.0,0.00022997,5]
[392254732,1761281304462,150.0,0.00022997,5]
[392254767,1761281431664,265.53174901,0.00022997,5]
[392254769,1761281431678,-466.0,0.00019701,2]
[392254770,1761281431691,-250.99354367,0.00019701,2]
[392254771,1761281431700,-139.58546023,0.00019704,2]
[392254772,1761281431717,-110.41453977,0.00019704,2]
[392254773,1761281431726,-1200.0,0.00019706,2]
[392254774,1761281431736,-619.8063093,0.00019707,2]
[392254775,1761281431746,-3389.0854835,0.00019707,2]
[392254776,1761281431756,-28741.68510652,0.00019707,2]
[392254777,1761281431768,-4201.65523545,0.00019707,2]
[392254778,1761281431879,-1505.03170375,0.00019707,2]
[392254779,1761281431892,-41224.96112248,0.00019707,2]
[392254780,1761281431902,-250.0,0.00019752,2]
[392254781,1761281431914,-6.99251012,0.00019776,2]
[392254782,1761281431924,-187.96158242,0.00019777,2]
[392254783,1761281431936,-300.0,0.000198,2]
[392254785,1761281431946,-152.21221826,0.00019851,2]
[392254787,1761281431957,-534.87963614,0.00019952,2]
[392254788,1761281431967,-500.0,0.00019998,2]
[392254789,1761281431976,-1200.0,0.00020026,2]
[392254790,1761281431986,-998.69,0.00020027,2]
[392254792,1761281431995,-577.00214916,0.00020187,2]
[392254794,1761281432005,-500.0,0.00020739,2]
[392254796,1761281432019,-500.0,0.00020739,2]
[392254797,1761281432029,-500.0,0.00020739,2]
[392254798,1761281432039,-500.0,0.00020739,2]
[392254800,1761281432049,-500.0,0.00020739,2]
[392254802,1761281432058,-500.0,0.00020739,2]
[392254803,1761281432068,-500.0,0.00020739,2]
[392254804,1761281432077,-500.0,0.00020739,2]
[392254805,1761281432087,-500.0,0.00020739,2]
[392254806,1761281432097,-500.0,0.00020739,2]
[392254807,1761281432106,-500.0,0.00020739,2]
[392254808,1761281432116,-500.0,0.00020739,2]
[392254809,1761281432127,-500.0,0.00020739,2]
[392254810,1761281432136,-500.0,0.00020739,2]
[392254812,1761281432146,-500.0,0.00020739,2]
[392254814,1761281432156,-500.0,0.00020739,2]
[392254816,1761281432165,-500.0,0.00020739,2]
[392254819,1761281432174,-500.0,0.00020739,2]
[392254821,1761281432185,-500.0,0.00020739,2]
[392254823,1761281432195,-433.21741562,0.00020739,2]
[392254825,1761281432205,-500.0,0.00020739,2]
[392254827,1761281432214,-500.0,0.00020739,2]
[392254829,1761281432224,-500.0,0.00020739,2]
[392254831,1761281432233,-500.0,0.00020739,2]
[392254833,1761281432243,-499.99999999,0.00020739,2]
[392254835,1761281432252,-150.0,0.00020739,2]
[392254837,1761281432263,-998.69,0.00020742,2]
[392254839,1761281432272,-998.69,0.00021457,2]
[392254841,1761281432282,-194.91,0.00021487,2]
[392254842,1761281432291,-420.0,0.00021565,2]
[392254843,1761281432301,-1680.0,0.00021567,2]
[392254844,1761281432310,-156.66,0.00021592,2]
[392254845,1761281432320,-250.0,0.00021671,2]
[392254846,1761281432330,-4000.0,0.00021726,2]
[392254847,1761281432339,-246.0,0.00021805,2]
[392254848,1761281432348,-187.96158241,0.00021942,2]
[392254849,1761281432357,-1411.02,0.00021944,2]
[392254850,1761281432367,-150.0,0.00021945,2]
[392254851,1761281432376,-1009.88383874,0.00021945,2]
[392254852,1761281432386,-151.0,0.00021987,2]
[392254853,1761281432395,-151.0,0.00021987,2]
[392254854,1761281432405,-151.0,0.00021987,2]
[392254855,1761281432414,-151.0,0.00021987,2]
[392254856,1761281432424,-151.0,0.00021987,2]
[392254857,1761281432435,-151.0,0.00021987,2]
[392254858,1761281432444,-151.0,0.00021987,2]
[392254859,1761281432453,-151.0,0.00021987,2]
[392254860,1761281432463,-261.78376345,0.00021987,2]
[392254861,1761281432473,-200.0,0.00021987,2]
[392254862,1761281432482,-151.0,0.00021987,2]
[392254863,1761281432492,-151.0,0.00021987,2]
[392254864,1761281432501,-263.05266046,0.00021987,2]
[392254865,1761281432511,-151.0,0.00021987,2]
[392254866,1761281432520,-151.0,0.00021987,2]
[392254867,1761281432530,-151.0,0.00021987,2]
[392254868,1761281432540,-151.0,0.00021987,2]
[392254869,1761281432550,-151.0,0.00021987,2]
[392254870,1761281432559,-151.0,0.00021987,2]
[392254871,1761281432569,-151.0,0.00021987,2]
[392254872,1761281432582,-151.0,0.00021987,2]
[392254873,1761281432592,-151.0,0.00021987,2]
[392254874,1761281432601,-151.0,0.00021987,2]
[392254875,1761281432611,-150.0,0.00021987,2]
[392254876,1761281432621,-500.0,0.00021987,2]
[392254877,1761281432630,-15241.8011954,0.00022,2]
[392254878,1761281432640,-150.0,0.00022042,2]
[392254879,1761281432649,-500.0,0.00022042,2]
[392254880,1761281432659,-213.34773796,0.00022054,2]
[392254881,1761281432669,-203.80169524,0.00022097,2]
[392254882,1761281432678,-500.0,0.00022097,2]
[392254883,1761281432690,-500.0,0.00022151,2]
[392254884,1761281432700,-998.69,0.00022172,2]
[392254885,1761281432709,-500.0,0.00022206,2]
[392254886,1761281432719,-1411.02,0.00022218,2]
[392254887,1761281432728,-75673.3331682,0.00022223,2]
[392254888,1761281432737,-500.0,0.00022261,2]
[392254889,1761281432747,-461.53636461,0.00022316,2]
[392254890,1761281432757,-1411.02,0.00022492,2]
[392254891,1761281432766,-619.8063093,0.00022506,2]
[392254892,1761281432776,-3389.0854835,0.00022506,2]
[392254893,1761281432786,-1411.02,0.00022766,2]
[392254894,1761281432795,-200.0,0.00022882,2]
[392254895,1761281432805,-998.69,0.00022887,2]
[392254896,1761281432815,-1411.02,0.0002304,2]
[392254897,1761281432824,-1411.02,0.00023314,2]
[392254898,1761281432834,-527.0,0.00023486,2]
[392254899,1761281432844,-1411.02,0.00023588,2]
[392254900,1761281432854,-998.69,0.00023603,2]
[392254901,1761281432863,-2351.0,0.00023605,2]
[392254902,1761281432873,-1411.02,0.00023862,2]
[392254903,1761281432882,-1000.0,0.00024084,2]
[392254904,1761281432891,-1411.02,0.00024136,2]
[392254905,1761281432901,-272.4,0.00024175,2]
[392254906,1761281432910,-500.0,0.00024267,2]
[392254907,1761281432919,-998.69,0.00024318,2]
[392254908,1761281432929,-1411.02,0.0002441,2]
[392254909,1761281432939,-1411.02,0.00024684,2]
[392254910,1761281432949,-1220.86,0.00024712,2]
[392254911,1761281432958,-200.0,0.00024738,2]
[392254912,1761281432967,-71860.12317638,0.0002474,2]
[392254913,1761281432980,-3813.20999182,0.0002474,2]
[392254914,1761281432989,-179.0,0.00024753,2]
[392254915,1761281432999,-450.04851065,0.00024815,2]
[392254916,1761281433008,-500.0,0.00024932,2]
[392254917,1761281433019,-1411.02,0.00024958,2]
[392254918,1761281433029,-500.0,0.0002496,2]
[392254919,1761281433040,-500.0,0.0002496,2]
[392254920,1761281433050,-501.06202151,0.0002496,2]
[392254921,1761281433060,-351.82884728,0.0002496,2]
[392254922,1761281433069,-500.47021381,0.0002496,2]
[392254923,1761281433081,-998.69,0.00025033,2]
[392254924,1761281433090,-188.0,0.00025137,2]
[392254925,1761281433099,-1411.02,0.00025232,2]
[392254926,1761281433110,-619.8063093,0.00025304,2]
[392254927,1761281433120,-3389.0854835,0.00025304,2]
[392254928,1761281433130,-1411.02,0.00025506,2]
[392254929,1761281433140,-1003.82660144,0.00025508,2]
[392254930,1761281433150,-998.69,0.00025748,2]
[392254931,1761281433159,-1411.02,0.0002578,2]
[392254932,1761281433169,-2248.90754335,0.00025835,2]
[392254933,1761281433182,-1043.09245665,0.00025835,2]
[392254934,1761281433192,-538.92729218,0.00026,2]
[392254935,1761281433202,-500.0,0.00026,2]
[392254936,1761281433212,-500.0,0.00026,2]
[392254937,1761281433221,-500.0,0.00026,2]
[392254938,1761281433231,-167.98025117,0.00026,2]
[392254939,1761281433244,-357.26008022,0.00026,2]
[392254940,1761281433254,-504.70536077,0.00026,2]
[392254941,1761281433263,-500.0,0.00026,2]
[392254942,1761281433273,-500.0,0.00026,2]
[392254943,1761281433283,-284.92272647,0.00026054,2]
[392254944,1761281433295,-949.15632863,0.00026054,2]
[392254945,1761281433306,-176.97024859,0.00026054,2]
[392254946,1761281433316,-196.32784681,0.00026464,2]
[392254947,1761281433328,-802.36215319,0.00026464,2]
[392254948,1761281433338,-1000.0,0.00026548,2]
[392254949,1761281433348,-1000.0,0.00026548,2]
[392254950,1761281433359,-511.15608382,0.00026548,2]
[392254951,1761281433369,-1000.0,0.00026548,2]
[392254952,1761281433379,-171.47,0.00026847,2]
[392254953,1761281433389,-787.82454232,0.00027095,2]
[392254960,1761281437615,-296.2499,0.00019706,2]
[392254961,1761281437739,-203.7501,0.00019706,2]
[392254962,1761281437748,-309.1265946,0.00019706,2]
[392254963,1761281437757,-234.62277119,0.00019706,2]
[392254964,1761281437767,-500.0,0.00019706,2]
[392254965,1761281437777,-264.91013659,0.00019706,2]
[392254966,1761281437787,-212.17545768,0.00027095,2]
[392254967,1761281437797,-351.23792917,0.00027095,2]
[392254968,1761281437807,-152.21221826,0.00027095,2]
[392254969,1761281437816,-1077.67743124,0.00027096,2]
[392254970,1761281437833,-422.32256876,0.00027096,2]
[392254972,1761281437845,-1500.0,0.00027096,2]
[392254973,1761281437856,-476.11845244,0.00027096,2]
[392254974,1761281437867,-998.69,0.00027179,2]
[392254975,1761281437877,-75673.3331682,0.00027256,2]
[392254976,1761281437887,-871.37647808,0.00027333,2]
[392254978,1761281437898,-676.85550377,0.00027463,2]
[392254979,1761281437908,-910.64907156,0.00027644,5]
[392254980,1761281437920,-392.77690881,0.00027644,5]
[392254981,1761281437929,-676.85550377,0.00027707,2]
[392254982,1761281437939,-513.00292246,0.00027972,2]
[392254983,1761281437949,-892.88,0.00028,15]
[392254984,1761281437958,-200.0,0.00028,2]
[392254985,1761281437967,-180.11,0.00028024,2]
[392254986,1761281437977,-2370.24,0.00028031,2]
[392254987,1761281437990,-619.8063093,0.00028103,2]
[392254989,1761281437999,-3389.0854835,0.00028103,2]
[392254990,1761281438009,-1545.0,0.00028275,2]
[392254991,1761281438018,-200.0,0.0002828,2]
[392254992,1761281438028,-1276.8814851,0.00028646,15]
[392254993,1761281438037,-150.0,0.00028661,2]
[392254994,1761281438047,-566.40706203,0.00029,5]
[392254995,1761281438056,-188.0,0.00029286,2]
[392254996,1761281438066,-1510.0,0.000293,2]
[392254997,1761281438076,-17925.94224696,0.000299,2]
[392254998,1761281438086,-233.54750743,0.0002999,2]
[392254999,1761281438095,-36024.40902079,0.0003,5]
[392255000,1761281438105,-625.78637787,0.0003,120]
[392255001,1761281438114,-14550.98274976,0.0003,2]
[392255002,1761281438309,-267.20910614,0.0003,2]
[392255003,1761281438320,-806.68,0.0003,2]
[392255004,1761281438339,-569.0859,0.0003,2]
[392255027,1761281440272,-1.6e-07,0.0003,2]
[392255028,1761281440332,-3372.41777488,0.0003,2]
[392255029,1761281440343,-2073.59,0.0003,30]
[392255030,1761281440354,-1000.0,0.00030105,2]
[392255031,1761281440364,-938.615,0.00030125,25]
[392255032,1761281440373,-180.11,0.00030126,2]
[392255033,1761281440383,-179.26511884,0.0003013,120]
[392255034,1761281440392,-171.47,0.00030203,2]
[392255035,1761281440402,-1387.9921,0.0003045,2]
[392255036,1761281440413,-1387.99209,0.0003048,2]
[392255037,1761281440423,-1387.9921,0.0003057,2]
[392255038,1761281440433,-1387.99209,0.000307,2]
[392255039,1761281440443,-213.56108569,0.00030749,7]
[392255040,1761281440452,-1387.9921,0.0003082,2]
[392255041,1761281440461,-4481.24527666,0.00030888,60]
[392255042,1761281440470,-1387.9921,0.0003095,2]
[392255043,1761281440480,-172.0,0.00031,120]
[392255044,1761281440490,-372.37,0.00031105,30]
[392255045,1761281440501,-17925.94224692,0.00031255,2]
[392255046,1761281440511,-1000.0,0.00031657,2]
[392255047,1761281440520,-5754.07855915,0.00032,2]
[392255048,1761281440530,-500.0,0.00032082,2]
[392255049,1761281440540,-180.11,0.00032228,2]
[392255050,1761281440550,-17925.94224692,0.00032609,2]
[392255051,1761281440560,-500.0,0.00032627,30]
[392255052,1761281440569,-500.0,0.00032627,2]
[392255053,1761281440582,-1045.07509294,0.00032733,7]
[392255054,1761281440591,-153.0,0.00032877,30]
[392255055,1761281440601,-1510.33415062,0.00033,2]
[392255056,1761281440613,-1000.0,0.00033116,2]
[392255057,1761281440623,-301.6,0.00033165,2]
[392255058,1761281440632,-500.0,0.00033377,7]
[392255059,1761281440642,-155.70255643,0.00033377,7]